[Event "FIDE Open Sachove Univerzity QCC"]
[Site "Ceske Budejovice"]
[Date "2020.07.10"]
[Round "9.29"]
[White "Trcka, Bohdan"]
[Black "Krautschneider, Daniel Jan"]
[Result "1-0"]
[ECO "C20"]
[WhiteElo "1528"]
[BlackElo "1374"]
[Annotator "NA RC"]
[PlyCount "71"]
[EventDate "2020.07.01"]
[EventType "swiss"]
[EventCountry "CZE"]
[TimeControl "40/5400+30:1800+30"]

1. e4 {[%emt 0:00:00]} e5 {[%emt 0:02:09]} 2. Be2 {[%emt 0:00:00]} Nf6 {[%emt 0:00:21]} 3. d3 {[%emt 0:00:00]} Nc6 {[%emt 0:00:40]} 4. c3 {[%emt 0:00:00]} Bc5 {[%emt 0:01:51]} 5. b4 {[%emt 0:00:19]} Bb6 {[%emt 0:00:30]} 6. a4 {[%emt 0:00:30]} a6 {[%emt 0:00:30]} 7. g4 {[%emt 0:00:30]} d6 {[%emt 0:00:30]} 8. g5 {[%emt 0:00:30]} Nd7 {[%emt 0:01:11]} 9. h4 {[%emt 0:00:52]} f6 {[%emt 0:01:56]} 10. Nf3 {[%emt 0:01:03]} O-O {[%emt 0:00:30]} 11. Na3 {[%emt 0:00:30]} f5 {[%emt 0:00:49]} 12. Qb3+ {[%emt 0:00:36]} Kh8 {[%emt 0:01:43]} 13. Be3 {[%emt 0:00:38]} fxe4 {[%emt 0:02:02]} 14. dxe4 {[%emt 0:00:36]} Qe7 {[%emt 0:00:30]} 15. Nc4 {[%emt 0:00:30]} Bxe3 {[%emt 0:00:30]} 16. Nxe3 {[%emt 0:00:30]} Nb6 {[%emt 0:00:20]} 17. a5 {[%emt 0:02:57]} Be6 {[%emt 0:00:42]} 18. Nd5 {[%emt 0:01:10]} Qf7 {[%emt 0:03:51]} 19. axb6 {[%emt 0:00:20]} cxb6 {[%emt 0:00:37]} 20. O-O-O {[%emt 0:02:10]} Ne7 {[%emt 0:00:20]} 21. h5 {[%emt 0:00:59]} Bg4 {[%emt 0:01:36]} 22. g6 {[%emt 0:00:23]} Qg8 {[%emt 0:02:07]} 23. gxh7 {[%emt 0:01:00]} Qf7 {[%emt 0:00:16]} 24. Ng5 {[%emt 0:00:22]} Qxf2 {[%emt 0:01:11]} 25. Bxg4 {[%emt 0:03:15]} Nxd5 {[%emt 0:01:11]} 26. Qxd5 {[%emt 0:00:53]} Qf4+ {[%emt 0:01:36]} 27. Qd2 {[%emt 0:00:17]} Qxg4 {[%emt 0:00:10]} 28. Rdg1 {[%emt 0:00:47]} Qc8 {[%emt 0:00:16]} 29. Rg3 {[%emt 0:01:49]} Qd7 {[%emt 0:04:16]} 30. h6 {[%emt 0:00:20]} g6 {[%emt 0:01:49]} 31. Qd5 {[%emt 0:00:33]} Rac8 {[%emt 0:01:04]} 32. Qe6 {[%emt 0:00:41]} Qc7 {[%emt 0:00:45]} 33. Qxg6 {[%emt 0:00:21]} Rf2 {[%emt 0:03:01]} 34. Qg7+ {[%emt 0:00:49]} Qxg7 {[%emt 0:00:25]} 35. hxg7+ {[%emt 0:00:31]} Kxg7 {[%emt 0:00:30]} 36. Nh3+ {[%emt 0:00:05]} 1-0